bitfinex-derivatives/quotes_SOLF0:USTF0_20260304
["timestamp","ask_amount","ask_price","bid_price","bid_amount"]
[1772626354260,2.31531231,89.74,89.7,10.033]
[1772626356166,2.31531231,89.73,89.7,10.033]
[1772626356366,3.92308607,89.729,89.66,3.86071655]
[1772626356662,2.31531231,89.72,89.661,3.86071655]
[1772626356860,2.31531231,89.71,89.662,10.037]
[1772626357056,2.31531231,89.7,89.662,13.89771655]
[1772626357969,2.31531231,89.7,89.668,10.036]
[1772626358661,2.31531231,89.71,89.668,10.036]
[1772626359063,10.031,89.717,89.668,10.036]
[1772626359064,2.31531231,89.7,89.668,10.036]
[1772626359972,2.31531231,89.71,89.676,3.86071655]
[1772626361072,2.31531231,89.71,89.675,10.035]
[1772626361968,2.31531231,89.7,89.666,10.036]
[1772626362177,2.31531231,89.71,89.666,10.036]
[1772626363777,2.31531231,89.71,89.666,13.89671655]
[1772626364278,13.95508607,89.709,89.666,3.86071655]
[1772626364576,2.31531231,89.7,89.666,3.86071655]
[1772626364772,13.95508607,89.709,89.666,3.86071655]
[1772626366478,13.95508607,89.709,89.667,10.036]
[1772626368077,2.31541305,89.71,89.667,10.036]
[1772626368078,13.95508607,89.707,89.667,13.89671655]
[1772626368273,3.59364277,89.699,89.659,10.037]
[1772626368468,2.31541305,89.69,89.659,10.037]
[1772626369374,3.59364277,89.699,89.668,10.036]
[1772626369772,5.90905582,89.71,89.668,10.036]
[1772626369977,2.31541305,89.7,89.661,10.037]
[1772626371778,2.31541305,89.7,89.668,10.036]
[1772626373377,2.31541305,89.7,89.661,10.037]
[1772626373981,2.31541305,89.7,89.668,10.036]
[1772626374775,2.31541305,89.7,89.669,3.63042517]
[1772626374972,2.31541305,89.7,89.672,3.63042517]
[1772626375380,2.31541305,89.72,89.672,3.63042517]
[1772626375580,2.31541305,89.74,89.685,3.63042517]
[1772626376281,2.31541305,89.73,89.685,3.63042517]
[1772626377382,2.31541305,89.73,89.69,10.034]
[1772626378581,10.03,89.728,89.69,10.034]
[1772626379080,3.59364277,89.78,89.699,3.63042517]
[1772626379278,3.59364277,89.749,89.699,3.63042517]
[1772626379479,3.59364277,89.749,89.705,10.032]
[1772626380080,3.59364277,89.749,89.712,10.031]
[1772626380287,2.31541305,89.76,89.713,3.63042517]
[1772626380685,2.31541305,89.75,89.716,10.031]
[1772626381275,2.31541305,89.75,89.708,10.032]
[1772626381975,5.90905582,89.75,89.708,10.032]
[1772626382379,2.31541305,89.74,89.708,10.032]
[1772626382581,2.31541305,89.74,89.7,10.033]
[1772626382779,10.23987582,89.784,89.668,3.63042517]
[1772626382780,2.31541305,89.73,89.668,3.63042517]
[1772626382980,2.31541305,89.73,89.67,2.31541305]
[1772626383177,2.31541305,89.73,89.671,3.63042517]
[1772626384486,2.31541305,89.73,89.691,10.034]
[1772626384685,2.31541305,89.73,89.684,3.63042517]
[1772626386490,2.31541305,89.73,89.686,10.034]
[1772626388587,3.59364277,89.75,89.695,3.63042517]
[1772626388891,2.31541305,89.73,89.695,3.63042517]
[1772626389392,2.31541305,89.73,89.699,10.033]
[1772626390594,2.31541305,89.73,89.691,10.034]
[1772626393302,2.31541305,89.73,89.698,10.033]
[1772626393502,2.31541305,89.73,89.681,3.63042517]
[1772626394400,2.31541305,89.73,89.691,10.034]
[1772626394801,2.31541305,89.73,89.691,13.66442517]
[1772626395201,2.31541305,89.73,89.697,10.033]
[1772626397006,2.31541305,89.73,89.691,3.63042517]
[1772626397007,2.31541305,89.73,89.695,10.033]
[1772626398006,3.59364277,89.719,89.664,3.63042517]
[1772626398807,2.31541305,89.72,89.681,3.57562985]
[1772626400509,2.31541305,89.72,89.685,10.034]
[1772626407114,2.31541305,89.72,89.685,13.88135341]
[1772626408417,6.17596177,89.72,89.679,10.035]
[1772626408717,6.17596177,89.72,89.679,13.88235341]
[1772626409014,10.031,89.719,89.682,10.035]
[1772626410019,6.17596177,89.72,89.688,10.034]
[1772626410320,2.31541305,89.71,89.658,3.84735341]
[1772626411410,2.31541305,89.71,89.674,10.035]
[1772626412718,2.31541305,89.71,89.674,13.88235341]
[1772626413319,2.31541305,89.7,89.667,10.036]
[1772626414020,2.31541305,89.7,89.661,3.84735341]
[1772626414216,10.033,89.702,89.63,2.31541305]
[1772626414217,2.31541305,89.69,89.649,3.84735341]
[1772626414417,2.31541305,89.68,89.649,3.84735341]
[1772626415415,2.31541305,89.68,89.652,10.038]
[1772626415622,2.31541305,89.69,89.652,10.038]
[1772626416224,2.31541305,89.69,89.653,3.84735341]
[1772626418319,2.31541305,89.69,89.655,10.038]
[1772626418918,2.31541305,89.69,89.655,3.84735341]
[1772626419224,3.86054872,89.698,89.655,3.84735341]
[1772626420221,2.31541305,89.71,89.67,3.84735341]
[1772626421528,2.31541305,89.71,89.675,10.035]
[1772626421917,2.31541305,89.71,89.637,10.37158436]
[1772626421918,2.31541305,89.7,89.665,10.036]
[1772626422726,2.31541305,89.69,89.658,10.037]
[1772626422922,10.033,89.699,89.658,10.037]
[1772626422923,2.31541305,89.68,89.658,10.037]
[1772626424323,3.86054872,89.689,89.658,10.037]
[1772626425029,2.31541305,89.68,89.642,3.84735341]
[1772626425420,3.86054872,89.669,89.625,3.84735341]
[1772626425724,2.31541305,89.66,89.625,3.84735341]
[1772626426124,2.31541305,89.66,89.626,10.041]
[1772626426527,2.3176334,89.66,89.626,10.041]
[1772626427032,2.3176334,89.66,89.625,3.84735341]
[1772626430940,2.3176334,89.66,89.625,13.88835341]
[1772626431245,3.90643162,89.659,89.625,10.041]
[1772626433843,3.90643162,89.659,89.623,3.59564711]
[1772626434841,2.3176334,89.66,89.623,3.59564711]
[1772626435043,3.90643162,89.668,89.623,3.59564711]
[1772626436142,2.3176334,89.66,89.623,3.59564711]
[1772626436342,3.90643162,89.659,89.623,3.59564711]
[1772626436637,3.90643162,89.659,89.618,10.042]
[1772626438042,2.3176334,89.65,89.611,3.59564711]
[1772626438641,2.3176334,89.65,89.62,10.042]
[1772626438838,3.90643162,89.657,89.621,3.59564711]
[1772626439040,6.22406502,89.67,89.621,3.59564711]
[1772626439248,2.3176334,89.67,89.632,3.59564711]
[1772626440044,3.90643162,89.686,89.637,3.59564711]
[1772626441652,2.3176334,89.68,89.647,10.038]
[1772626443040,2.3176334,89.7,89.661,3.59564711]
[1772626443345,2.3176334,89.72,89.661,3.59564711]
[1772626443549,10.031,89.719,89.671,3.59564711]
[1772626443751,2.3176334,89.71,89.671,3.59564711]
[1772626443947,2.3176334,89.71,89.675,10.035]
[1772626444148,2.3176334,89.72,89.676,3.59564711]
[1772626444451,2.3176334,89.71,89.676,3.59564711]
[1772626444653,3.90643162,89.726,89.676,3.59564711]
[1772626445752,2.3176334,89.71,89.651,3.59564711]
[1772626445949,3.90643162,89.709,89.651,3.59564711]
[1772626446751,13.93843162,89.707,89.665,10.037]
[1772626446947,3.90643162,89.699,89.651,3.59564711]
[1772626447552,3.90643162,89.699,89.659,10.037]
[1772626457157,3.90643162,89.699,89.662,10.037]
[1772626457362,2.3176334,89.71,89.663,3.59564711]
[1772626457653,10.031,89.714,89.663,3.59564711]
[1772626458247,3.7532288,89.709,89.663,3.59564711]
[1772626459450,2.3176334,89.7,89.663,3.59564711]
[1772626460061,6.0708622,89.7,89.663,3.59564711]
[1772626460255,6.0708622,89.7,89.664,10.037]
[1772626460961,2.3176334,89.7,89.67,10.036]
[1772626461164,13.7842288,89.712,89.671,3.64420007]
[1772626462460,10.032,89.707,89.671,3.64420007]
[1772626463362,10.032,89.707,89.65,2.3176334]
[1772626463363,3.7532288,89.711,89.673,3.70941215]
[1772626463664,2.3176334,89.71,89.673,3.70941215]
[1772626464164,10.032,89.709,89.673,3.70941215]
[1772626465966,13.52256024,89.709,89.673,3.70941215]
[1772626468064,13.52256024,89.709,89.65,2.3176334]
[1772626468065,3.49056024,89.699,89.66,13.74641215]
[1772626468764,3.49056024,89.699,89.662,10.037]
[1772626468969,3.49056024,89.699,89.662,13.74641215]
[1772626469170,3.49056024,89.699,89.662,10.037]
[1772626470173,2.3176334,89.7,89.64,2.3176334]
[1772626470174,12.3496334,89.71,89.667,3.70941215]
[1772626472376,10.032,89.704,89.667,3.70941215]
[1772626472876,10.032,89.704,89.668,10.036]
[1772626473979,10.032,89.704,89.669,3.70941215]
[1772626477778,13.52256024,89.71,89.671,10.036]
[1772626477978,15.84019364,89.71,89.671,10.036]
[1772626479078,15.84019364,89.71,89.671,13.74541215]
[1772626479678,10.032,89.706,89.671,13.74541215]
[1772626479874,3.49056024,89.699,89.664,10.037]
[1772626480580,3.49056024,89.699,89.664,13.74641215]
[1772626482878,2.3176334,89.68,89.638,3.70941215]
[1772626483775,3.49056024,89.689,89.638,3.70941215]
[1772626484176,3.49056024,89.689,89.646,10.039]
[1772626487487,3.49056024,89.687,89.638,13.74941215]
[1772626487694,2.31640627,89.68,89.639,3.70941215]
[1772626487981,3.49056024,89.687,89.639,3.70941215]
[1772626489081,4.01914676,89.685,89.641,10.039]
[1772626489276,2.31640627,89.68,89.641,10.039]
[1772626489682,4.01914676,89.679,89.641,10.039]
[1772626495288,2.31640627,89.68,89.647,4.09018963]
[1772626495485,13.7429122,89.715,89.647,4.09018963]
[1772626495486,4.01914676,89.689,89.647,4.09018963]
[1772626496283,10.033,89.694,89.647,4.09018963]
[1772626496490,10.033,89.694,89.652,4.09018963]
[1772626496681,2.31640627,89.7,89.652,4.09018963]
[1772626497288,4.01914676,89.699,89.652,4.09018963]
[1772626498290,4.01914676,89.698,89.653,4.09018963]
[1772626499286,10.033,89.695,89.656,10.037]
[1772626499491,4.01914676,89.694,89.656,10.037]
[1772626500492,4.01914676,89.694,89.657,4.09018963]
[1772626501690,10.034,89.692,89.657,4.09018963]
[1772626501891,2.31640627,89.69,89.647,10.038]
[1772626502195,2.31640627,89.67,89.628,4.09018963]
[1772626502391,4.01914676,89.668,89.628,4.09018963]
[1772626502889,10.038,89.655,89.614,4.09018963]
[1772626503095,2.31640627,89.65,89.614,4.09018963]
[1772626503689,4.01914676,89.659,89.614,4.09018963]
[1772626504992,4.01914676,89.702,89.641,4.09018963]
[1772626505294,4.01914676,89.699,89.641,4.09018963]
[1772626505793,4.01914676,89.699,89.652,4.09018963]
[1772626506191,10.032,89.702,89.652,4.09018963]
[1772626507395,6.33555303,89.7,89.652,4.09018963]
[1772626507801,4.01914676,89.697,89.652,4.09018963]
[1772626508595,2.31640627,89.69,89.652,4.09018963]
[1772626508798,4.01914676,89.697,89.653,10.038]
[1772626508994,4.01914676,89.697,89.652,4.09018963]
[1772626510491,14.05214676,89.697,89.652,4.09018963]
[1772626510692,4.01914676,89.696,89.652,4.09018963]
[1772626511196,10.033,89.694,89.652,4.09018963]
[1772626513200,4.01914676,89.688,89.64,14.12918963]
[1772626513803,4.01914676,89.688,89.641,4.09018963]
[1772626514505,10.034,89.684,89.641,4.09018963]
[1772626515403,10.034,89.684,89.644,4.09018963]
[1772626516008,4.01914676,89.688,89.646,4.09018963]
[1772626517500,4.01914676,89.688,89.649,10.038]
[1772626517901,4.01914676,89.688,89.649,14.12818963]
[1772626519501,3.75933456,89.684,89.649,4.09018963]
[1772626519708,2.31640627,89.69,89.649,4.09018963]
[1772626519906,3.75933456,89.696,89.649,4.09018963]
[1772626520510,10.034,89.692,89.649,14.12818963]
[1772626520904,10.034,89.692,89.65,3.73817218]
[1772626521108,3.75933456,89.696,89.653,10.038]
[1772626522513,3.75933456,89.694,89.653,10.038]
[1772626523413,3.67382033,89.689,89.65,3.73817218]
[1772626524207,10.034,89.688,89.651,10.038]
[1772626524402,3.67382033,89.689,89.651,10.038]
[1772626524914,3.67382033,89.689,89.651,3.73443611]
[1772626526412,3.67382033,89.689,89.651,13.77243611]
[1772626526614,3.67382033,89.689,89.651,3.73443611]
[1772626529016,3.67382033,89.689,89.651,13.77243611]
[1772626529916,2.31640627,89.7,89.662,3.73443611]
[1772626531118,3.67382033,89.706,89.665,3.73443611]
[1772626532418,3.67382033,89.706,89.671,10.036]
[1772626533517,3.67382033,89.706,89.671,13.77043611]
[1772626533720,13.7429122,89.737,89.486,88.79508818]
[1772626533721,3.67382033,89.733,89.674,3.73443611]
[1772626534016,2.31640627,89.73,89.674,3.73443611]
[1772626535207,3.67382033,89.729,89.687,13.76843611]
[1772626536412,3.67382033,89.719,89.679,10.035]
[1772626537016,13.70482033,89.719,89.673,3.73443611]
[1772626537415,3.67382033,89.718,89.673,3.73443611]
[1772626537919,2.31640627,89.7,89.673,3.73443611]
[1772626538119,2.31640627,89.7,89.661,3.73443611]
[1772626538918,3.67382033,89.709,89.661,3.73443611]
[1772626539514,3.67382033,89.709,89.667,10.036]
[1772626542214,5.9902266,89.69,89.648,3.73443611]
[1772626543418,5.9902266,89.69,89.654,10.038]
[1772626544217,3.67382033,89.716,89.668,3.73443611]
[1772626545114,3.67382033,89.716,89.679,10.035]
[1772626546518,3.67382033,89.716,89.679,13.76943611]
[1772626547421,3.67382033,89.709,89.665,3.73443611]
[1772626547816,3.67382033,89.709,89.667,3.73443611]
[1772626549418,3.67382033,89.709,89.669,10.036]
[1772626550120,3.67382033,89.709,89.673,10.036]
[1772626551021,3.67382033,89.709,89.673,13.7113743]
[1772626551920,2.31459681,89.72,89.681,3.6753743]
[1772626552114,3.84977562,89.729,89.681,3.6753743]
[1772626552318,3.84977562,89.719,89.681,3.6753743]
[1772626553420,3.84977562,89.709,89.658,3.6753743]
[1772626554531,3.84977562,89.709,89.67,10.036]
[1772626556634,13.7429122,89.746,89.658,3.6753743]
[1772626556635,3.84977562,89.699,89.658,3.6753743]
[1772626557032,3.84977562,89.689,89.646,10.039]
[1772626558737,3.84977562,89.679,89.64,3.6753743]
[1772626560837,2.31459681,89.67,89.64,3.6753743]
[1772626563438,3.84977562,89.679,89.64,3.6753743]
[1772626564740,2.31459681,89.66,89.622,3.6753743]
[1772626564941,2.31459681,89.65,89.606,3.6753743]
[1772626565341,2.31459681,89.65,89.616,10.042]
[1772626565742,2.31459681,89.65,89.606,3.6753743]
[1772626567047,3.84977562,89.649,89.606,3.6753743]
[1772626567545,3.84977562,89.649,89.609,10.043]
[1772626568739,3.84977562,89.649,89.613,10.042]
[1772626568946,3.84977562,89.649,89.614,3.6753743]
[1772626569547,10.039,89.647,89.595,3.6753743]
[1772626570044,3.84977562,89.649,89.595,3.6753743]
[1772626570641,3.84977562,89.649,89.605,10.043]
[1772626570947,3.84977562,89.649,89.606,3.6753743]
[1772626571141,2.31459681,89.66,89.609,3.6753743]
[1772626571343,3.84977562,89.664,89.61,2.31459681]
[1772626571541,3.84977562,89.664,89.609,3.6753743]
[1772626571746,3.84977562,89.664,89.627,10.041]
[1772626572043,2.31459681,89.68,89.627,10.041]
[1772626572244,3.84977562,89.679,89.627,10.041]
[1772626572745,3.84977562,89.674,89.634,10.04]
[1772626572948,2.31459681,89.67,89.629,3.6753743]
[1772626573153,3.84977562,89.669,89.629,3.6753743]
[1772626574453,13.88577562,89.669,89.629,3.6753743]
[1772626574946,2.31459681,89.64,89.599,3.6753743]
[1772626575245,2.31459681,89.63,89.594,187.22315493]
[1772626575840,2.31459681,89.62,89.579,10.046]
[1772626576046,2.31459681,89.62,89.571,3.6753743]
[1772626576248,3.84977562,89.628,89.571,3.6753743]
[1772626576653,2.31459681,89.62,89.577,10.046]
[1772626577951,13.7429122,89.678,89.55,173.76496725]
[1772626577952,3.84977562,89.609,89.569,10.047]
[1772626578549,20.075,89.66,89.55,173.76496725]
[1772626578550,2.31459681,89.62,89.574,3.90264607]
[1772626578748,2.31459681,89.63,89.574,3.90264607]
[1772626579144,3.93508589,89.639,89.587,3.90264607]
[1772626580350,13.97508589,89.638,89.59,10.045]
[1772626580653,3.93508589,89.637,89.59,10.045]
[1772626580854,2.31459681,89.63,89.59,10.045]
[1772626581256,3.93508589,89.637,89.591,3.90264607]
[1772626581557,10.04,89.634,89.592,10.045]
[1772626581754,2.31459681,89.63,89.592,10.045]
[1772626584456,30.30741239,89.687,89.595,3.62560772]
[1772626584457,2.31459681,89.65,89.595,3.62560772]
[1772626584654,3.39985836,89.652,89.595,3.62560772]
[1772626584858,3.39985836,89.652,89.601,3.62560772]
[1772626586256,2.31459681,89.65,89.601,3.62560772]
[1772626586457,3.39985836,89.649,89.601,3.62560772]
[1772626587459,3.39985836,89.647,89.601,13.66960772]
[1772626588260,10.04,89.639,89.601,3.62560772]
[1772626589562,10.04,89.639,89.552,10.38122804]
[1772626589563,3.39985836,89.688,89.631,3.62560772]
[1772626589761,3.39985836,89.688,89.641,3.62560772]
[1772626589956,2.31459681,89.71,89.655,10.038]
[1772626590160,2.31459681,89.7,89.655,10.038]
[1772626590964,5.71445517,89.7,89.655,10.038]
[1772626591558,3.39985836,89.699,89.646,13.66460772]
[1772626592259,3.39985836,89.697,89.647,3.62560772]
[1772626593360,3.39985836,89.689,89.631,3.62560772]
[1772626594253,1.94098946,89.729,89.64,3.62560772]
[1772626594254,10.033,89.7,89.64,3.62560772]
[1772626594456,15.74745517,89.7,89.64,3.62560772]
[1772626594665,13.43285836,89.7,89.641,3.62560772]
[1772626595466,3.39985836,89.699,89.651,10.038]
[1772626596869,1.94098946,89.729,89.627,3.62560772]
[1772626596870,3.39985836,89.679,89.627,3.62560772]
[1772626598061,3.39985836,89.679,89.635,10.04]
[1772626598366,2.31459681,89.7,89.641,3.62560772]
[1772626598567,2.31459681,89.7,89.605,20.087]
[1772626598568,3.39985836,89.709,89.651,3.62560772]
[1772626599369,3.39985836,89.709,89.665,10.037]
[1772626601065,3.39985836,89.705,89.658,3.62560772]
[1772626601662,2.31459681,89.7,89.658,3.62560772]
[1772626601872,3.39985836,89.689,89.641,3.62560772]
[1772626602063,2.31459681,89.68,89.641,3.62560772]
[1772626603764,3.39985836,89.679,89.636,10.04]
[1772626606371,10.035,89.678,89.628,13.66660772]
[1772626606574,10.035,89.678,89.528,34.47055162]
[1772626606575,2.31459681,89.66,89.615,3.62560772]
[1772626606875,156.021,89.729,89.591,3.62560772]
[1772626606876,2.31459681,89.65,89.591,3.62560772]
[1772626607175,2.31459681,89.65,89.614,10.042]
[1772626607374,3.39985836,89.639,89.575,10.34563203]
[1772626607578,2.31459681,89.58,89.542,3.62560772]
[1772626607773,3.39985836,89.639,89.542,3.62560772]
[1772626608078,2.31459681,89.59,89.542,3.62560772]
[1772626608379,3.39985836,89.609,89.546,3.74277402]
[1772626608876,3.39985836,89.609,89.555,3.74277402]
[1772626609578,3.39985836,89.609,89.562,3.74277402]
[1772626610380,3.39985836,89.609,89.564,10.048]
[1772626611290,3.39985836,89.609,89.562,3.74277402]
[1772626611471,3.39985836,89.609,89.554,10.049]
[1772626611676,3.39985836,89.609,89.555,3.74277402]
[1772626614380,13.67069546,89.607,89.555,3.74277402]
[1772626615579,3.62769546,89.607,89.557,3.74277402]
[1772626617481,3.62769546,89.607,89.542,3.74277402]
[1772626617886,10.046,89.58,89.527,3.74277402]
[1772626618077,3.62769546,89.579,89.501,3.74277402]
[1772626618384,3.62769546,89.569,89.506,3.74277402]
[1772626618977,3.62769546,89.569,89.521,3.74277402]
[1772626619179,3.62769546,89.569,89.482,3.74277402]
[1772626620093,3.62769546,89.569,89.521,3.74277402]
[1772626620389,3.62769546,89.569,89.482,3.74277402]
[1772626620686,3.62769546,89.569,89.505,3.74277402]
[1772626621684,3.62769546,89.557,89.505,3.74277402]
[1772626621886,3.62769546,89.557,89.494,10.056]
[1772626622486,10.049,89.554,89.501,10.055]
[1772626622687,3.62769546,89.553,89.495,3.74277402]
[1772626622994,3.62769546,89.553,89.479,3.74277402]
[1772626623690,10.05,89.543,89.491,10.056]
[1772626624289,3.62769546,89.553,89.499,3.74277402]
[1772626624290,3.62769546,89.552,89.499,3.74277402]
[1772626624688,3.62769546,89.548,89.482,3.74277402]
[1772626627095,3.62769546,89.548,89.453,3.74277402]
[1772626627294,5.5251922,89.55,89.452,1.94434046]
[1772626627295,3.62769546,89.542,89.494,10.056]
[1772626628397,3.62769546,89.539,89.494,10.056]
[1772626630700,2.32449479,89.53,89.494,10.056]
[1772626632098,3.62769546,89.529,89.485,10.057]
[1772626635105,3.62769546,89.548,89.494,3.74277402]
[1772626636303,5.5354657,89.57,89.452,1.94434046]
[1772626636304,3.62769546,89.546,89.453,3.74277402]
[1772626637209,3.62769546,89.527,89.472,10.058]
[1772626637606,3.62769546,89.527,89.453,3.74277402]
[1772626638207,13.73422268,89.516,89.471,10.058]
[1772626638914,13.73422268,89.516,89.463,10.059]
[1772626639406,3.68122268,89.513,89.463,10.059]
[1772626641113,10.054,89.511,89.463,10.059]
[1772626641617,3.68122268,89.51,89.463,10.059]
[1772626641819,3.68122268,89.508,89.454,10.06]
[1772626643417,3.68122268,89.508,89.439,3.81770771]
[1772626643616,3.60265266,89.489,89.429,3.81770771]
[1772626644208,3.60265266,89.489,89.445,3.81770771]
[1772626644413,20.1,89.549,89.445,3.81770771]
[1772626644414,3.60265266,89.504,89.445,3.81770771]
[1772626644608,3.60265266,89.504,89.401,1.94525341]
[1772626644609,3.60265266,89.504,89.429,3.81770771]
[1772626644914,156.332,89.55,89.431,10.063]
[1772626644915,3.60265266,89.486,89.431,10.063]
[1772626645113,3.60265266,89.549,89.432,3.81770771]
[1772626645315,3.60265266,89.509,89.432,3.81770771]
[1772626645620,156.318,89.559,89.432,3.81770771]
[1772626645621,3.60265266,89.499,89.432,3.81770771]
[1772626646117,3.60265266,89.492,89.442,10.062]
[1772626647319,10.056,89.491,89.444,10.061]
[1772626647518,3.60265266,89.492,89.444,13.87870771]
[1772626648116,3.60265266,89.492,89.448,10.061]
[1772626648813,20.1,89.548,89.455,3.81770771]
[1772626648814,3.60265266,89.506,89.455,3.81770771]
[1772626649923,3.60265266,89.497,89.429,3.81770771]
[1772626650119,3.60265266,89.489,89.429,3.81770771]
[1772626650316,10.058,89.474,89.429,3.81770771]
[1772626650516,3.60265266,89.489,89.429,3.81770771]
[1772626650919,10.058,89.476,89.429,3.81770771]
[1772626651222,3.60265266,89.489,89.429,3.81770771]
[1772626651917,3.60265266,89.511,89.43,3.81770771]
[1772626652123,3.60265266,89.539,89.43,3.81770771]
[1772626652723,3.60265266,89.536,89.457,3.81770771]
[1772626653319,3.60265266,89.527,89.469,13.87670771]
[1772626653520,3.60265266,89.527,89.47,3.81770771]
[1772626653919,13.65465266,89.526,89.47,3.81770771]
[1772626654120,3.60265266,89.525,89.47,3.81770771]
[1772626655416,3.60265266,89.525,89.471,3.81770771]
[1772626655618,3.60265266,89.576,89.471,3.81770771]
[1772626655920,11.16,89.593,89.471,3.81770771]
[1772626655921,3.60265266,89.531,89.471,3.81770771]
[1772626656622,3.60265266,89.531,89.473,3.81770771]
[1772626657216,3.60265266,89.531,89.481,3.81770771]
[1772626658625,2.32522112,89.52,89.481,3.81770771]
[1772626658815,2.32522112,89.52,89.483,10.057]
[1772626659322,2.32522112,89.53,89.484,3.81770771]
[1772626660120,2.32522112,89.51,89.468,3.81770771]
[1772626661720,2.32522112,89.49,89.452,13.87770771]
[1772626662422,2.32522112,89.5,89.452,13.87770771]
[1772626663419,13.65765266,89.499,89.452,3.81770771]
[1772626663615,2.32522112,89.49,89.452,3.81770771]
[1772626664719,2.32522112,89.48,89.436,3.81770771]
[1772626664922,3.60265266,89.469,89.42,3.81770771]
[1772626665223,3.60265266,89.459,89.415,10.065]
[1772626667027,3.60265266,89.475,89.423,10.064]
[1772626667823,3.60265266,89.472,89.414,10.065]
[1772626668418,3.60265266,89.472,89.421,3.749556]
[1772626669025,10.059,89.462,89.406,3.749556]
[1772626669225,5.54397443,89.45,89.373,4.21704734]
[1772626669424,10.063,89.43,89.373,14.28604734]
[1772626669729,10.063,89.43,89.374,4.21704734]
[1772626669929,5.54397443,89.45,89.374,4.21704734]
[1772626670130,5.54397443,89.43,89.36,4.21704734]
[1772626670529,5.54993033,89.44,89.36,4.21704734]
[1772626671419,10.063,89.433,89.372,10.069]
[1772626672329,10.063,89.433,89.36,4.21704734]
[1772626672330,5.54993033,89.44,89.364,4.27049779]
[1772626673130,10.064,89.417,89.364,4.27049779]
[1772626674127,10.064,89.417,89.36,10.071]
[1772626674128,10.063,89.427,89.367,4.29505817]
[1772626676138,10.064,89.42,89.369,10.07]
[1772626676537,10.064,89.42,89.367,4.29505817]
[1772626676734,5.54993033,89.44,89.326,4.39339519]
[1772626677031,10.066,89.404,89.35,10.072]
[1772626678237,5.54993033,89.42,89.344,4.39339519]
[1772626679332,5.54993033,89.42,89.345,4.37876363]
[1772626679333,10.066,89.399,89.345,4.37876363]
[1772626679937,5.54993033,89.42,89.345,4.37876363]
[1772626680834,10.066,89.401,89.346,10.072]
[1772626681532,5.54993033,89.42,89.351,4.37296404]
[1772626681533,10.065,89.41,89.351,4.37296404]
[1772626681738,5.54993033,89.44,89.351,4.37296404]
[1772626682141,10.063,89.43,89.366,4.37296404]
[1772626683341,5.54993033,89.44,89.374,4.39925772]
[1772626683342,10.064,89.423,89.374,4.39925772]
[1772626684540,10.063,89.431,89.376,14.437635]
[1772626684740,10.063,89.431,89.377,4.368635]
[1772626684945,10.062,89.439,89.386,10.068]
[1772626685140,10.062,89.439,89.377,4.368635]
[1772626685941,10.062,89.439,89.385,14.436635]
[1772626686345,5.54993033,89.46,89.385,14.436635]
[1772626686346,5.54993033,89.46,89.385,4.368635]
[1772626686842,10.064,89.424,89.385,4.368635]
[1772626687239,10.064,89.424,89.345,4.34115985]
[1772626688439,10.064,89.417,89.369,4.3437826]
[1772626689638,10.064,89.417,89.372,10.069]
[1772626689839,10.064,89.425,89.373,4.3437826]
[1772626690743,5.54993033,89.42,89.317,4.33943824]
[1772626691945,5.54993033,89.42,89.316,20.152]
[1772626691946,10.067,89.395,89.343,10.073]
[1772626692244,5.54993033,89.4,89.302,4.33943824]
[1772626692443,5.54993033,89.44,89.302,4.33943824]
[1772626692444,5.54993033,89.38,89.312,10.076]
[1772626692948,10.071,89.356,89.304,10.077]
[1772626693245,5.54993033,89.38,89.302,4.33943824]
[1772626693443,10.072,89.35,89.303,10.077]
[1772626693639,5.54993033,89.38,89.303,10.077]
[1772626693841,5.54993033,89.36,89.262,4.23595237]
[1772626694047,10.072,89.354,89.295,10.078]
[1772626694547,10.071,89.363,89.296,4.24049464]
[1772626694951,5.54993033,89.38,89.296,4.24049464]
[1772626695251,10.072,89.346,89.296,14.31849464]
[1772626695643,10.071,89.355,89.304,10.077]
[1772626695944,5.54993033,89.38,89.305,4.24049464]
[1772626696147,10.07,89.365,89.316,4.24049464]
[1772626696444,246.5891061,89.394,89.316,4.24049464]
[1772626697147,10.068,89.382,89.333,4.25976026]
[1772626697951,10.067,89.392,89.335,4.25976026]
[1772626698249,5.54993033,89.42,89.335,4.25976026]
[1772626698444,10.066,89.403,89.335,4.25976026]
[1772626699049,10.067,89.396,89.343,10.073]
[1772626699450,10.067,89.396,89.335,4.25976026]